Workbook

Sheet Лист1
A1: 24 | B1: 33 | C1: 0.5 | G1: 10Сз+Бп | H1: 62 | I1: 0.7 | J1: 1 | K1: 21 | L1: 24 | M1: 300 | N1: 4 | O1: СРС | P1: Зміна ГР | Q1: 300
A2: 24 | B2: 37 | C2: 0.4 | G2: 10Сз | H2: 64 | I2: 0.7 | J2: 1а | K2: 22 | L2: 26 | M2: 320 | N2: 4 | O2: СРС | P2: Зміна ГР | Q2: 320
A3: 24 | B3: 11 | C3: 0.5 | G3: 10Сз | H3: 64 | I3: 0.7 | J3: 1а | K3: 22 | L3: 26 | M3: 320 | N3: 4 | O3: СРС | P3: Зміна ГР | Q3: 320
A4: 29 | B4: 33 | C4: 0.4 | G4: 10Сз | H4: 102 | I4: 0.6 | J4: 2 | K4: 25 | L4: 32 | M4: 320 | N4: 4 | O4: СРС | P4: Зміна ГР | Q4: 320
A5: 24 | B5: 2 | C5: 0.5 | G5: 10Сз +Ос | H5: 62 | I5: 0.7 | J5: 1а | K5: 21 | L5: 24 | M5: 300 | N5: 4 | O5: СРС | P5: Зміна ГР | Q5: 300
A6: 29 | B6: 1 | C6: 0.5 | G6: 10Сз | H6: 65 | I6: 0.7 | J6: 1а | K6: 21 | L6: 24 | M6: 300 | N6: 4 | O6: СРС | P6: Зміна ГР | Q6: 300
A7: 21 | B7: 20 | C7: 0.5 | G7: 10Сз | H7: 63 | I7: 0.7 | J7: 1 | K7: 19 | L7: 22 | M7: 280 | N7: 4 | O7: СРС | P7: Зміна ГР | Q7: 280
A8: 22 | B8: 2 | C8: 0.6 | G8: 10Сз | H8: 65 | I8: 0.75 | J8: 1а | K8: 24 | L8: 26 | M8: 380 | N8: 4 | O8: СРС | P8: Зміна ГР | Q8: 380
A9: 22 | B9: 29 | C9: 0.5 | G9: 10Сз+Бп | H9: 65 | I9: 0.7 | J9: 1 | K9: 22 | L9: 26 | M9: 320 | N9: 4 | O9: СРС | P9: Зміна ГР | Q9: 320
A10: 32 | B10: 28 | C10: 0.3 | G10: 10Сз+Бп | H10: 67 | I10: 0.7 | J10: 1 | K10: 24 | L10: 28 | M10: 360 | N10: 4 | O10: СРС | P10: Зміна ГР | Q10: 360
A11: 26 | B11: 4 | C11: 0.6 | G11: 10Сз | H11: 57 | I11: 0.7 | J11: 1а | K11: 26 | L11: 26 | M11: 340 | N11: 4 | O11: СРС | P11: Зміна ГР | Q11: 340
A12: 22 | B12: 4 | C12: 0.5 | G12: 8Сз2Бп | H12: 65 | I12: 0.7 | J12: 1 | K12: 22 | L12: 26 | M12: 270 | N12: 4 | O12: СРС | P12: Зміна ГР | Q12: 270
A13: 7 | B13: 12 | C13: 0.4 | G13: 10Сз+Бп | H13: 64 | I13: 0.7 | J13: 1а | K13: 24 | L13: 28 | M13: 360 | N13: 4 | O13: СРС | P13: Зміна ГР | Q13: 360
A14: 10 | B14: 32 | C14: 0.3 | G14: 10Сз | H14: 63 | I14: 0.7 | J14: 1 | K14: 24 | L14: 28 | M14: 360 | N14: 4 | O14: СРС | P14: Зміна ГР | Q14: 360
A15: 16 | B15: 1 | C15: 0.3 | G15: 10Сз | H15: 61 | I15: 0.7 | J15: 1 | K15: 24 | L15: 28 | M15: 360 | N15: 4 | O15: СРС | P15: Зміна ГР | Q15: 360
A16: 43 | B16: 19 | C16: 0.3 | G16: 10Сз+Вл | H16: 67 | I16: 0.7 | J16: 1а | K16: 24 | L16: 30 | M16: 360 | N16: 4 | O16: СРС | P16: Зміна ГР | Q16: 360
A17: 48 | B17: 4 | C17: 0.6 | G17: 10Сз | H17: 68 | I17: 0.7 | J17: 1 | K17: 22 | L17: 26 | M17: 320 | N17: 4 | O17: СРС | P17: Зміна ГР | Q17: 320
A18: 47 | B18: 18 | C18: 0.4 | G18: 10Сз+Бп | H18: 72 | I18: 0.7 | J18: 1 | K18: 23 | L18: 28 | M18: 340 | N18: 4 | O18: СРС | P18: Зміна ГР | Q18: 340
A19: 39 | B19: 1 | C19: 0.7 | G19: 10Сз | H19: 82 | I19: 0.6 | J19: 1 | K19: 23 | L19: 30 | M19: 290 | N19: 4 | O19: СРС | P19: Зміна ГР | Q19: 290
A20: 36 | B20: 16 | C20: 0.7 | G20: 10Сз | H20: 52 | I20: 0.7 | J20: 1а | K20: 22 | L20: 24 | M20: 320 | N20: 4 | O20: СРС | P20: Зміна ГР | Q20: 320
A21: 40 | B21: 15 | C21: 0.3 | G21: 10Сз | H21: 77 | I21: 0.7 | J21: 1 | K21: 25 | L21: 32 | M21: 380 | N21: 4 | O21: СРС | P21: Зміна ГР | Q21: 380
A22: 40 | B22: 16 | C22: 0.3 | G22: 10Сз | H22: 63 | I22: 0.7 | J22: 1а | K22: 23 | L22: 28 | M22: 340 | N22: 4 | O22: СРС | P22: Зміна ГР | Q22: 340
A23: 13 | B23: 9 | C23: 0.4 | G23: 10Сз | H23: 62 | I23: 0.8 | J23: 1а | K23: 24 | L23: 28 | M23: 410 | N23: 4 | O23: СРС | P23: Зміна ГР | Q23: 410
A24: 12 | B24: 3 | C24: 0.2 | G24: 10Сз | H24: 64 | I24: 0.7 | J24: 1 | K24: 21 | L24: 26 | M24: 300 | N24: 4 | O24: СРС | P24: Зміна ГР | Q24: 300
A25: 9 | B25: 22 | C25: 0.5 | G25: 10Сз | H25: 60 | I25: 0.7 | J25: 1а | K25: 24 | L25: 26 | M25: 360 | N25: 4 | O25: СРС | P25: Зміна ГР | Q25: 360
A26: 9 | B26: 12 | C26: 0.5 | G26: 10Сз+Бп | H26: 62 | I26: 0.7 | J26: 1 | K26: 23 | L26: 24 | M26: 340 | N26: 4 | O26: СРС | P26: Зміна ГР | Q26: 340
A27: 14 | B27: 1 | C27: 0.5 | G27: 10Сз | H27: 61 | I27: 0.8 | J27: 1 | K27: 22 | L27: 24 | M27: 360 | N27: 4 | O27: СРС | P27: Зміна ГР | Q27: 360
A28: 4 | B28: 17 | C28: 0.4 | G28: 10Сз+Вл | H28: 45 | I28: 0.7 | J28: 1 | K28: 16 | L28: 18 | M28: 200 | N28: 4 | O28: СРС | P28: Зміна ГР | Q28: 200
A29: 4 | B29: 41 | C29: 0.6 | G29: 10Сз | H29: 55 | I29: 0.7 | J29: 2 | K29: 17 | L29: 18 | M29: 220 | N29: 4 | O29: СРС | P29: Зміна ГР | Q29: 220
A30: 14 | B30: 22 | C30: 0.5 | G30: 10Сз | H30: 62 | I30: 0.7 | J30: 1а | K30: 23 | L30: 28 | M30: 340 | N30: 4 | O30: СРС | P30: Зміна ГР | Q30: 340

Sheet Санітарнооздоровчі 2016_2
A2: ПОГОДЖЕНО | M2: ПОГОДЖЕНО
A3: Директор | N3: _____________________________________
A4: (найменування посади керівника державного | N4: ( найменування посади керівника органу виконавчої влади з
A5: Державного спеціалізованого лісозахисного
A6: підприємства "Рівнелісозахист" | N6: Рівненського обласного управління лісового
A7: спеціалізованого лісозахисного підприємства) | N7: питань лісового господарства автономної Республіки Крим або
A8: О.В. Кошин | N8: та мисливського господарства
N9: ______________________________________
A10: (підпис,ініціали, прізвише) | N10: відповідного територіального органу Держлісагентства)
A11: _____ __________________ 20____р. | N11: ______________________________________
N12: (підпис, ініціали, прізвище)
N13: _______________________________ 20____р.
A15: ПЕРЕЛІК
A16: заходів з поліпшення санітарного стану лісів
A17: ДП „Костопільське лісове господарство” на 2018 рік
A18: (найменування власника лісів, постійного лісокористувача)
A19: Рівненська область
A20: (Автономна Республіка Крим, область)
A22: Лісництво | B22: № кварталу | C22: № виділу | D22: Площа виділу, га | E22: № підвиділу | F22: Площа підвиділу, гектарів | H22: Коротка таксаційна характеристика відповідно до матеріалів лісовпрідкування | O22: Категорія захищеності | P22: Вид запланованих заходиів | Q22: Причини призначення заходів | R22: Орієнтовний запас деревини, що підлягає вирубуванню, м3/га | S22: Наявність рослин та тварин занесених до Червоної книги
F23: загальна | G23: у тому числі площа, можлива для експлуатації | H23: склад | I23: вік, років | J23: повнота | K23: бонітет | L23: середня висота, м | M23: середній діаметер, см | N23: запас деревостану, м3/га
A24: 1 | B24: 2 | C24: 3 | D24: 4 | E24: 5 | F24: 6 | G24: 7 | H24: 8 | I24: 9 | J24: 10 | K24: 11 | L24: 12 | M24: 13 | N24: 14 | O24: 15 | P24: 16 | Q24: 17 | R24: 18 | S24: 19
A25: Стидинське | B25: 13 | C25: 11 | D25: 2.4 | F25: 2.1 | H25: 10Сз | I25: 55 | J25: 0.7 | K25: 1А | L25: 23 | M25: 28 | N25: 340 | O25: 4 | P25: СРВ | Q25: Пониження РГВ, КВШ | R25: 18 | S25: відсутні
A26: Стидинське | B26: 13 | C26: 9 | D26: 2.4 | F26: 2.4 | H26: 10Сз | I26: 55 | J26: 0.8 | K26: 1А | L26: 24 | M26: 28 | N26: 410 | O26: 4 | P26: СРВ | Q26: Пониження РГВ, КВШ | R26: 17 | S26: відсутні
A27: Стидинське | B27: 14 | C27: 1 | D27: 15.3 | F27: 15 | H27: 10Сз | I27: 54 | J27: 0.8 | K27: 1А | L27: 22 | M27: 24 | N27: 360 | O27: 4 | P27: СРВ | Q27: Пониження РГВ, КВШ | R27: 12 | S27: відсутні
A28: Стидинське | B28: 15 | C28: 35 | D28: 6.1 | F28: 5.6 | H28: 10Сз+Бп | I28: 55 | J28: 0.7 | K28: 1 | L28: 21 | M28: 22 | N28: 280 | O28: 4 | P28: СРВ | Q28: Пониження РГВ, КВШ | R28: 15 | S28: відсутні
A29: Стидинське | B29: 33 | C29: 15 | D29: 5.2 | F29: 5.2 | H29: 10Сз | I29: 49 | J29: 0.7 | K29: 1А | L29: 21 | M29: 22 | N29: 300 | O29: 4 | P29: СРВ | Q29: Пониження РГВ, КВШ | R29: 15 | S29: відсутні
A30: Стидинське | B30: 32 | C30: 16 | D30: 1.3 | F30: 1.3 | H30: 10Сз+Бп | I30: 65 | J30: 0.7 | K30: 1 | L30: 22 | M30: 26 | N30: 320 | O30: 4 | P30: СРВ | Q30: Пониження РГВ, КВШ | R30: 15 | S30: відсутні
A31: Стидинське | B31: 32 | C31: 7 | D31: 5.2 | F31: 4.9 | H31: 10Сз | I31: 70 | J31: 0.7 | K31: 2 | L31: 20 | M31: 22 | N31: 280 | O31: 4 | P31: СРВ | Q31: Пониження РГВ, КВШ | R31: 15 | S31: відсутні
A32: Стидинське | B32: 42 | C32: 6 | D32: 11.9 | F32: 11.9 | H32: 10Сз | I32: 75 | J32: 0.7 | K32: 1 | L32: 23 | M32: 32 | N32: 340 | O32: 4 | P32: СРВ | Q32: Пониження РГВ, КВШ | R32: 18 | S32: відсутні
A33: Стидинське | B33: 40 | C33: 3 | D33: 10.8 | F33: 10.8 | H33: 10Сз | I33: 80 | J33: 0.6 | K33: 1 | L33: 24 | M33: 36 | N33: 310 | O33: 4 | P33: СРВ | Q33: Пониження РГВ, КВШ | R33: 15 | S33: відсутні
A34: Стидинське | B34: 43 | C34: 15 | D34: 7.2 | F34: 7.2 | H34: 10Сз+Бп | I34: 56 | J34: 0.7 | K34: 1 | L34: 21 | M34: 24 | N34: 300 | O34: 4 | P34: СРВ | Q34: Пониження РГВ, КВШ | R34: 15 | S34: відсутні
A35: Стидинське | B35: 43 | C35: 19 | D35: 5.1 | F35: 5.1 | H35: 10Сз+Влч+Дз | I35: 60 | J35: 0.7 | K35: 1А | L35: 24 | M35: 30 | N35: 360 | O35: 4 | P35: СРВ | Q35: Пониження РГВ, КВШ | R35: 15 | S35: відсутні
A36: Стидинське | B36: 16 | C36: 1 | D36: 20.8 | F36: 20.8 | H36: 10Сз | I36: 54 | J36: 0.7 | K36: 1А | L36: 24 | M36: 28 | N36: 360 | O36: 4 | P36: СРВ | Q36: Пониження РГВ, КВШ | R36: 15 | S36: відсутні
B37: Разом (СРВ): | F37: =SUM(F25:F36) -> 92.3
A38: Стидинське | B38: 13 | C38: 11 | D38: 2.4 | E38: 1 | F38: 0.3 | G38: 0.3 | H38: 10Сз | I38: 55 | J38: 0.7 | K38: 1А | L38: 23 | M38: 28 | N38: 340 | O38: 4 | P38: СРС | Q38: Пониження РГВ, КВШ | R38: 340 | S38: відсутні
A39: Стидинське | B39: 14 | C39: 1 | D39: 15.3 | E39: 1 | F39: 0.3 | G39: 0.3 | H39: 10Сз | I39: 54 | J39: 0.8 | K39: 1А | L39: 22 | M39: 24 | N39: 360 | O39: 4 | P39: СРС | Q39: Пониження РГВ, КВШ | R39: 360 | S39: відсутні
A40: Стидинське | B40: 15 | C40: 35 | D40: 6.1 | E40: 1 | F40: 0.5 | G40: 0.5 | H40: 10Сз+Бп | I40: 55 | J40: 0.7 | K40: 1 | L40: 21 | M40: 22 | N40: 280 | O40: 4 | P40: СРС | Q40: Пониження РГВ, КВШ | R40: 280 | S40: відсутні
A41: Стидинське | B41: 33 | C41: 15 | D41: 5.2 | E41: 1 | F41: 0.4 | H41: 10Сз | I41: 49 | J41: 0.7 | K41: 1А | L41: 21 | M41: 22 | N41: 300 | O41: 4 | P41: СРС | Q41: Пониження РГВ, КВШ | R41: 300 | S41: відсутні
A42: Стидинське | B42: 32 | C42: 7 | D42: 5.2 | E42: 1 | F42: 0.3 | G42: 0.3 | H42: 10Сз | I42: 70 | J42: 0.7 | K42: 2 | L42: 20 | M42: 22 | N42: 280 | O42: 4 | P42: СРС | Q42: Пониження РГВ, КВШ | R42: 280 | S42: відсутні
B43: Разом (СРС): | F43: =SUM(F38:F42) -> 1.8 | G43: =SUM(G38:G42) -> 1.4
A44: Костопільське | B44: 5 | C44: 27 | D44: 1.1 | F44: 1.1 | H44: 9Сз1Бп+Гз | I44: 73 | J44: 0.8 | K44: 1А | L44: 28 | M44: 36 | N44: 440 | O44: 4 | P44: СРВ | Q44: Пониження РГВ, КВШ | R44: 10 | S44: відсутні
A45: Костопільське | B45: 6 | C45: 14 | D45: 5.6 | F45: 2 | H45: 9Сз1Дз+Бп | I45: 75 | J45: 0.8 | K45: 1А | L45: 28 | M45: 36 | N45: 470 | O45: 4 | P45: СРВ | Q45: Пониження РГВ, КВШ | R45: 10 | S45: відсутні
A46: Костопільське | B46: 6 | C46: 26 | D46: 2.2 | F46: 2.2 | H46: 10Сз | I46: 80 | J46: 0.7 | K46: 1А | L46: 29 | M46: 36 | N46: 460 | O46: 4 | P46: СРВ | Q46: Пониження РГВ, КВШ | R46: 15 | S46: відсутні
A47: Костопільське | B47: 11 | C47: 3 | D47: 3 | F47: 3 | H47: 8Сз2Дз+Бп | I47: 75 | J47: 0.8 | K47: 1А | L47: 28 | M47: 32 | N47: 470 | O47: 4 | P47: СРВ | Q47: Пониження РГВ, КВШ | R47: 15 | S47: відсутні
A48: Костопільське | B48: 11 | C48: 18 | D48: 1.7 | F48: 1.5 | H48: 5Сз2Дз2Бп1Гз+Влч | I48: 72 | J48: 0.7 | K48: 1А | L48: 27 | M48: 32 | N48: 280 | O48: 4 | P48: СРВ | Q48: Пониження РГВ, КВШ (всихання дерев Сз) | R48: 10 | S48: відсутні
A49: Костопільське | B49: 11 | C49: 19 | D49: 0.9 | F49: 0.7 | H49: 9Сз1Гз+Дз | I49: 80 | J49: 0.7 | K49: 1 | L49: 27 | M49: 32 | N49: 300 | O49: 4 | P49: СРВ | Q49: Пониження РГВ, КВШ | R49: 10 | S49: відсутні
A50: Костопільське | B50: 14 | C50: 9 | D50: 5.8 | F50: 2 | H50: 10Сз+Бп | I50: 54 | J50: 0.8 | K50: 1А | L50: 23 | M50: 28 | N50: 390 | O50: 4 | P50: СРВ | Q50: Пониження РГВ, КВШ | R50: 10 | S50: відсутні
A51: Костопільське | B51: 17 | C51: 1 | D51: 1 | F51: 0.8 | H51: 9Сз1Бп | I51: 58 | J51: 0.85 | K51: 1А | L51: 24 | M51: 28 | N51: 400 | O51: 2 | P51: СРВ | Q51: Пониження РГВ, КВШ | R51: 10 | S51: відсутні
A52: Костопільське | B52: 17 | C52: 8 | D52: 3 | F52: 2.3 | H52: 10Сз+Бп | I52: 80 | J52: 0.8 | K52: 1Б | L52: 31 | M52: 36 | N52: 570 | O52: 2 | P52: СРВ | Q52: Пониження РГВ, КВШ | R52: 10 | S52: відсутні
A53: Костопільське | B53: 18 | C53: 6 | D53: 4.4 | F53: 1 | H53: 7Сз3Бп | I53: 60 | J53: 0.85 | K53: 1А | L53: 25 | M53: 28 | N53: 370 | O53: 2 | P53: СРВ | Q53: Вітровал, бурелом, КВШ | R53: 15 | S53: відсутні
A54: Костопільське | B54: 18 | C54: 11 | D54: 2.9 | F54: 2.9 | H54: 10Сз | I54: 80 | J54: 0.8 | K54: 1Б | L54: 31 | M54: 40 | N54: 570 | O54: 2 | P54: СРВ | Q54: Вітровал, бурелом, КВШ | R54: 10 | S54: відсутні
A55: Костопільське | B55: 19 | C55: 2 | D55: 4.5 | F55: 2 | H55: 6Сз4Бп | I55: 59 | J55: 0.8 | K55: 1А | L55: 25 | M55: 30 | N55: 320 | O55: 2 | P55: СРВ | Q55: Вітровал, бурелом, КВШ | R55: 15 | S55: відсутні
A56: Костопільське | B56: 19 | C56: 3 | D56: 1.2 | F56: 1.2 | H56: 9Сз1Бп | I56: 68 | J56: 0.85 | K56: 1А | L56: 27 | M56: 30 | N56: 460 | O56: 2 | P56: СРВ | Q56: Вітровал, бурелом, КВШ | R56: 15 | S56: відсутні
A57: Костопільське | B57: 22 | C57: 3 | D57: 0.7 | F57: 0.7 | H57: 10Сз | I57: 90 | J57: 0.8 | K57: 1А | L57: 30 | M57: 36 | N57: 550 | O57: 2 | P57: СРВ | Q57: Пониження РГВ, КВШ | R57: 10 | S57: відсутні
A58: Костопільське | B58: 22 | C58: 8 | D58: 3 | E58: 1 | F58: 1.5 | H58: 10Сз | I58: 75 | J58: 0.75 | K58: 1Б | L58: 30 | M58: 36 | N58: 520 | O58: 2 | P58: СРВ | Q58: Пониження РГВ, КВШ | R58: 10 | S58: відсутні
A59: Костопільське | B59: 22 | C59: 10 | D59: 0.8 | F59: 0.8 | H59: 10Сз | I59: 95 | J59: 0.6 | K59: 1А | L59: 30 | M59: 44 | N59: 420 | O59: 2 | P59: СРВ | Q59: Пониження РГВ, КВШ | R59: 10 | S59: відсутні
A60: Костопільське | B60: 22 | C60: 12 | D60: 9 | E60: 1 | F60: 2 | H60: 10Сз+Бп | I60: 58 | J60: 0.75 | K60: 1А | L60: 24 | M60: 28 | N60: 380 | O60: 2 | P60: СРВ | Q60: Пониження РГВ, КВШ | R60: 10 | S60: відсутні
A61: Костопільське | B61: 24 | C61: 30 | D61: 0.6 | F61: 0.6 | H61: 10Сз | I61: 50 | J61: 0.65 | K61: 1А | L61: 22 | M61: 26 | N61: 370 | O61: 2 | P61: СРВ | Q61: Пониження РГВ, КВШ | R61: 10 | S61: відсутні
A62: Костопільське | B62: 25 | C62: 21 | D62: 1.1 | F62: 1.1 | H62: 10Сз+Бп | I62: 50 | J62: 0.8 | K62: 1А | L62: 23 | M62: 28 | N62: 390 | O62: 4 | P62: СРВ | Q62: Пониження РГВ, КВШ | R62: 15 | S62: відсутні
A63: Костопільське | B63: 25 | C63: 27 | D63: 0.6 | F63: 0.6 | H63: 10Сз | I63: 60 | J63: 0.8 | K63: 1 | L63: 22 | M63: 30 | N63: 370 | O63: 4 | P63: СРВ | Q63: Пониження РГВ, КВШ | R63: 10 | S63: відсутні
A64: Костопільське | B64: 26 | C64: 40 | D64: 2.9 | E64: 1 | F64: 1.3 | H64: 10Сз+Дз | I64: 80 | J64: 0.8 | K64: 1А | L64: 30 | M64: 36 | N64: 570 | O64: 2 | P64: СРВ | Q64: Пониження РГВ, КВШ | R64: 10 | S64: відсутні
A65: Костопільське | B65: 26 | C65: 41 | D65: 1.5 | E65: 1 | F65: 0.8 | H65: 10Сз+Дз+Гз | I65: 75 | J65: 0.7 | K65: 1А | L65: 29 | M65: 32 | N65: 460 | O65: 2 | P65: СРВ | Q65: Пониження РГВ, КВШ | R65: 15 | S65: відсутні
A66: Костопільське | B66: 30 | C66: 29 | D66: 2.5 | E66: 1 | F66: 1.5 | H66: 10Сз+Гз+Бп | I66: 73 | J66: 0.75 | K66: 1А | L66: 28 | M66: 32 | N66: 470 | O66: 2 | P66: СРВ | Q66: Пониження РГВ, КВШ | R66: 10 | S66: відсутні
A67: Костопільське | B67: 31 | C67: 16 | D67: 5.5 | F67: 4.4 | H67: 10Сз | I67: 80 | J67: 0.8 | K67: 1А | L67: 30 | M67: 36 | N67: 540 | O67: 2 | P67: СРВ | Q67: Пониження РГВ, КВШ | R67: 10 | S67: відсутні
A68: Костопільське | B68: 31 | C68: 22 | D68: 2.2 | E68: 1 | F68: 1 | H68: 10Сз | I68: 60 | J68: 0.7 | K68: 1А | L68: 23 | M68: 28 | N68: 350 | O68: 2 | P68: СРВ | Q68: Пониження РГВ, КВШ | R68: 10 | S68: відсутні
A69: Костопільське | B69: 31 | C69: 28 | D69: 0.7 | F69: 0.7 | H69: 10Сз | I69: 80 | J69: 0.7 | K69: 1А | L69: 30 | M69: 36 | N69: 460 | O69: 2 | P69: СРВ | Q69: Пониження РГВ, КВШ | R69: 10 | S69: відсутні
A70: Костопільське | B70: 36 | C70: 5 | D70: 2.4 | F70: 2.4 | H70: 10Сз | I70: 58 | J70: 0.75 | K70: 1 | L70: 20 | M70: 26 | N70: 310 | O70: 2 | P70: СРВ | Q70: Пониження РГВ, КВШ | R70: 10 | S70: відсутні
A71: Костопільське | B71: 36 | C71: 9 | D71: 4.8 | E71: 1 | F71: 3 | H71: 10Сз | I71: 70 | J71: 0.75 | K71: 1 | L71: 25 | M71: 32 | N71: 440 | O71: 2 | P71: СРВ | Q71: Пониження РГВ, КВШ | R71: 10 | S71: відсутні
A72: Костопільське | B72: 37 | C72: 4 | D72: 4 | E72: 1 | F72: 2 | H72: 9Сз1Бп+Дз | I72: 60 | J72: 0.85 | K72: 1А | L72: 23 | M72: 26 | N72: 400 | O72: 2 | P72: СРВ | Q72: Пониження РГВ, КВШ | R72: 10 | S72: відсутні
A73: Костопільське | B73: 37 | C73: 18 | D73: 0.9 | F73: 0.7 | H73: 8Сз2Бп | I73: 46 | J73: 0.8 | K73: 1А | L73: 21 | M73: 28 | N73: 300 | O73: 2 | P73: СРВ | Q73: Пониження РГВ, КВШ | R73: 10 | S73: відсутні
A74: Костопільське | B74: 37 | C74: 19 | D74: 1.2 | F74: 0.9 | H74: 10Сз+Бп | I74: 65 | J74: 0.85 | K74: 1А | L74: 26 | M74: 30 | N74: 460 | O74: 2 | P74: СРВ | Q74: Пониження РГВ, КВШ | R74: 10 | S74: відсутні
A75: Костопільське | B75: 37 | C75: 20 | D75: 1.4 | F75: 1.1 | H75: 10Сз+Бп | I75: 65 | J75: 0.8 | K75: 1А | L75: 26 | M75: 30 | N75: 460 | O75: 2 | P75: СРВ | Q75: Пониження РГВ, КВШ | R75: 15 | S75: відсутні
A76: Костопільське | B76: 37 | C76: 21 | D76: 1.5 | F76: 0.9 | H76: 10Сз | I76: 46 | J76: 0.8 | K76: 1А | L76: 21 | M76: 26 | N76: 340 | O76: 2 | P76: СРВ | Q76: Пониження РГВ, КВШ | R76: 10 | S76: відсутні
A77: Костопільське | B77: 37 | C77: 22 | D77: 0.6 | F77: 0.3 | H77: 10Сз | I77: 46 | J77: 0.7 | K77: 1А | L77: 21 | M77: 26 | N77: 300 | O77: 2 | P77: СРВ | Q77: Пониження РГВ, КВШ | R77: 5 | S77: відсутні
A78: Костопільське | B78: 37 | C78: 29 | D78: 0.8 | F78: 0.6 | H78: 10Сз | I78: 58 | J78: 0.75 | K78: 1А | L78: 23 | M78: 26 | N78: 360 | O78: 2 | P78: СРВ | Q78: Пониження РГВ, КВШ | R78: 10 | S78: відсутні
A79: Костопільське | B79: 38 | C79: 3 | D79: 0.5 | F79: 0.5 | H79: 10Сз | I79: 59 | J79: 0.65 | K79: 1 | L79: 22 | M79: 30 | N79: 300 | O79: 2 | P79: СРВ | Q79: Пониження РГВ, КВШ | R79: 10 | S79: відсутні
A80: Костопільське | B80: 38 | C80: 4 | D80: 0.5 | F80: 0.5 | H80: 10Сз | I80: 75 | J80: 0.7 | K80: 1А | L80: 27 | M80: 32 | N80: 430 | O80: 2 | P80: СРВ | Q80: Пониження РГВ, КВШ | R80: 10 | S80: відсутні
A81: Костопільське | B81: 45 | C81: 36 | D81: 0.3 | F81: 0.3 | H81: 10Сз | I81: 90 | J81: 0.65 | K81: 1 | L81: 29 | M81: 40 | N81: 430 | O81: 2 | P81: СРВ | Q81: Пониження РГВ, КВШ | R81: 10 | S81: відсутні
A82: Костопільське | B82: 46 | C82: 3 | D82: 0.4 | F82: 0.3 | H82: 10Сз+Бп | I82: 67 | J82: 0.8 | K82: 1 | L82: 24 | M82: 28 | N82: 400 | O82: 2 | P82: СРВ | Q82: Пониження РГВ, КВШ | R82: 10 | S82: відсутні
A83: Костопільське | B83: 46 | C83: 4 | D83: 1 | F83: 1 | H83: 10Сз+Бп | I83: 67 | J83: 0.7 | K83: 1 | L83: 24 | M83: 28 | N83: 360 | O83: 2 | P83: СРВ | Q83: Пониження РГВ, КВШ | R83: 10 | S83: відсутні
A84: Костопільське | B84: 46 | C84: 26 | D84: 1.3 | F84: 1.3 | H84: 5Сз5Бп | I84: 44 | J84: 0.8 | K84: 2 | L84: 15 | M84: 22 | N84: 170 | O84: 2 | P84: СРВ | Q84: Пониження РГВ, КВШ (всихання дерев Сз) | R84: 10 | S84: відсутні
A85: Костопільське | B85: 46 | C85: 27 | D85: 0.4 | F85: 0.4 | H85: 10Сз+Бп | I85: 55 | J85: 0.8 | K85: 1А | L85: 23 | M85: 24 | N85: 380 | O85: 2 | P85: СРВ | Q85: Пониження РГВ, КВШ | R85: 10 | S85: відсутні
A86: Костопільське | B86: 50 | C86: 38 | D86: 1.3 | F86: 1.3 | H86: 9Сз1Бп | I86: 57 | J86: 0.75 | K86: 1А | L86: 22 | M86: 26 | N86: 330 | O86: 2 | P86: СРВ | Q86: Пониження РГВ, КВШ | R86: 10 | S86: відсутні
A87: Костопільське | B87: 51 | C87: 3 | D87: 0.7 | F87: 0.7 | H87: 10Сз+Дз+Гз+Бп | I87: 85 | J87: 0.65 | K87: 1А | L87: 29 | M87: 36 | N87: 460 | O87: 2 | P87: СРВ | Q87: Пониження РГВ, КВШ (всихання дерев Сз) | R87: 15 | S87: відсутні
A88: Костопільське | B88: 51 | C88: 13 | D88: 2.8 | F88: 1 | H88: 10Сз+Дз+Гз+Бп | I88: 85 | J88: 0.6 | K88: 1 | L88: 28 | M88: 36 | N88: 380 | O88: 2 | P88: СРВ | Q88: Пониження РГВ, КВШ (всихання дерев Сз) | R88: 10 | S88: відсутні
A89: Костопільське | B89: 53 | C89: 3 | D89: 2.1 | F89: 1 | H89: 8Сз1Бп1Дз | I89: 75 | J89: 0.7 | K89: 1 | L89: 25 | M89: 32 | N89: 340 | O89: 2 | P89: СРВ | Q89: Пониження РГВ, КВШ | R89: 10 | S89: відсутні
A90: Костопільське | B90: 54 | C90: 5 | D90: 3 | F90: 2.4 | H90: 9Сз1Бп+Гз | I90: 56 | J90: 0.8 | K90: 1А | L90: 24 | M90: 30 | N90: 380 | O90: 2 | P90: СРВ | Q90: Пониження РГВ, КВШ | R90: 10 | S90: відсутні
A91: Костопільське | B91: 54 | C91: 6 | D91: 0.4 | F91: 0.4 | H91: 9Сз1Бп | I91: 70 | J91: 0.8 | K91: 1 | L91: 25 | M91: 32 | N91: 150 | O91: 2 | P91: СРВ | Q91: Пониження РГВ, КВШ | R91: 10 | S91: відсутні
A92: Костопільське | B92: 54 | C92: 7 | D92: 0.7 | F92: 0.7 | H92: 10Сз+Ос | I92: 75 | J92: 0.75 | K92: 1А | L92: 28 | M92: 36 | N92: 460 | O92: 2 | P92: СРВ | Q92: Пониження РГВ, КВШ | R92: 10 | S92: відсутні
A93: Костопільське | B93: 55 | C93: 1 | D93: 1.6 | F93: 1.4 | H93: 9Сз1Бп | I93: 59 | J93: 0.8 | K93: 1А | L93: 24 | M93: 32 | N93: 380 | O93: 2 | P93: СРВ | Q93: Пониження РГВ, КВШ | R93: 15 | S93: відсутні
A94: Костопільське | B94: 55 | C94: 2 | D94: 0.6 | F94: 0.6 | H94: 9Сз1Бп | I94: 59 | J94: 0.7 | K94: 1А | L94: 24 | M94: 32 | N94: 330 | O94: 2 | P94: СРВ | Q94: Пониження РГВ, КВШ | R94: 10 | S94: відсутні
A95: Костопільське | B95: 57 | C95: 3 | D95: 11 | F95: 8.5 | H95: 9Сз1Бп | I95: 58 | J95: 0.75 | K95: 1 | L95: 22 | M95: 26 | N95: 330 | O95: 2 | P95: СРВ | Q95: Пониження РГВ, КВШ | R95: 15 | S95: відсутні
A96: Костопільське | B96: 57 | C96: 8 | D96: 7.4 | F96: 2.1 | H96: 10Сз+Дз+Бп | I96: 56 | J96: 0.75 | K96: 1А | L96: 24 | M96: 28 | N96: 380 | O96: 2 | P96: СРВ | Q96: Пониження РГВ, КВШ | R96: 10 | S96: відсутні
A97: Костопільське | B97: 58 | C97: 1 | D97: 8.5 | F97: 7.8 | H97: 10Сз+Бп | I97: 60 | J97: 0.75 | K97: 1А | L97: 26 | M97: 28 | N97: 430 | O97: 2 | P97: СРВ | Q97: Пониження РГВ, КВШ | R97: 10 | S97: відсутні
A98: Костопільське | B98: 59 | C98: 14 | D98: 8.1 | F98: 6.9 | H98: 9Сз1Бп | I98: 51 | J98: 0.8 | K98: 1А | L98: 22 | M98: 26 | N98: 350 | O98: 2 | P98: СРВ | Q98: Пониження РГВ, КВШ | R98: 10 | S98: відсутні
A99: Костопільське | B99: 65 | C99: 3 | D99: 2.8 | F99: 2.6 | H99: 10Сз | I99: 58 | J99: 0.65 | K99: 2 | L99: 18 | M99: 22 | N99: 220 | O99: 4 | P99: СРВ | Q99: Пониження РГВ, КВШ | R99: 10 | S99: відсутні
A100: Костопільське | B100: 65 | C100: 12 | D100: 0.3 | F100: 0.3 | H100: 10Сз | I100: 49 | J100: 0.85 | K100: 1 | L100: 19 | M100: 22 | N100: 320 | O100: 4 | P100: СРВ | Q100: Пониження РГВ, КВШ | R100: 10 | S100: відсутні
A101: Костопільське | B101: 65 | C101: 13 | D101: 0.8 | F101: 0.6 | H101: 10Сз | I101: 49 | J101: 0.85 | K101: 1А | L101: 21 | M101: 24 | N101: 360 | O101: 4 | P101: СРВ | Q101: Пониження РГВ, КВШ | R101: 10 | S101: відсутні
A102: Костопільське | B102: 70 | C102: 11 | D102: 1.8 | F102: 1.8 | H102: 8Сз1Бп1Дз | I102: 75 | J102: 0.75 | K102: 1А | L102: 28 | M102: 36 | N102: 440 | O102: 2 | P102: СРВ | Q102: Пониження РГВ, КВШ | R102: 10 | S102: відсутні
A103: Костопільське | B103: 70 | C103: 12 | D103: 0.9 | F103: 0.9 | H103: 7Сз2Ялє1Дз | I103: 75 | J103: 0.75 | K103: 1А | L103: 28 | M103: 32 | N103: 470 | O103: 2 | P103: СРВ | Q103: Пониження РГВ, КВШ | R103: 10 | S103: відсутні
A104: Костопільське | B104: 70 | C104: 15 | D104: 1.3 | F104: 1.3 | H104: 7Сз1Ялє1Дз1Бп | I104: 75 | J104: 0.8 | K104: 1А | L104: 28 | M104: 40 | N104: 560 | O104: 2 | P104: СРВ | Q104: Пониження РГВ, КВШ | R104: 10 | S104: відсутні
A105: Костопільське | B105: 76 | C105: 15 | D105: 4.6 | F105: 2 | H105: 7Сз3Дз | I105: 52 | J105: 0.75 | K105: 1А | L105: 22 | M105: 28 | N105: 320 | O105: 4 | P105: СРВ | Q105: Пониження РГВ, КВШ (всихання дерев Сз) | R105: 15 | S105: відсутні
A106: Костопільське | B106: 88 | C106: 18 | D106: 1.1 | F106: 0.6 | H106: 8Сз2Бп | I106: 51 | J106: 0.8 | K106: 1А | L106: 21 | M106: 26 | N106: 310 | O106: 4 | P106: СРВ | Q106: Пониження РГВ, КВШ | R106: 15 | S106: відсутні
A107: Костопільське | B107: 90 | C107: 9 | D107: 2.6 | F107: 0.7 | H107: 8Сз2Бп+Лпд+Дчр+Гз | I107: 40 | J107: 0.75 | K107: 1А | L107: 18 | M107: 22 | N107: 220 | O107: 4 | P107: СРВ | Q107: Пониження РГВ, КВШ | R107: 10 | S107: відсутні
A108: Костопільське | B108: 90 | C108: 12 | D108: 0.8 | F108: 0.8 | H108: 10Сз+Бп+Дз | I108: 70 | J108: 0.75 | K108: 1А | L108: 27 | M108: 30 | N108: 460 | O108: 4 | P108: СРВ | Q108: Пониження РГВ, КВШ | R108: 10 | S108: відсутні
A109: Костопільське | B109: 92 | C109: 18 | D109: 2.7 | F109: 0.5 | H109: 8Сз1Ялє1Дз | I109: 70 | J109: 0.75 | K109: 1А | L109: 27 | M109: 32 | N109: 440 | O109: 4 | P109: СРВ | Q109: Пониження РГВ, КВШ | R109: 10 | S109: відсутні
A110: Костопільське | B110: 95 | C110: 6 | D110: 2.7 | F110: 1.9 | H110: 10Сз | I110: 45 | J110: 0.8 | K110: 1А | L110: 21 | M110: 22 | N110: 340 | O110: 4 | P110: СРВ | Q110: Пониження РГВ, КВШ | R110: 15 | S110: відсутні
A111: Костопільське | B111: 95 | C111: 11 | D111: 6 | F111: 3 | H111: 9Сз1Бп | I111: 52 | J111: 0.8 | K111: 1 | L111: 19 | M111: 22 | N111: 280 | O111: 4 | P111: СРВ | Q111: Пониження РГВ, КВШ | R111: 10 | S111: відсутні
A112: Костопільське | B112: 95 | C112: 18 | D112: 12.2 | F112: 3.2 | H112: 10Сз | I112: 46 | J112: 0.65 | K112: 1 | L112: 18 | M112: 18 | N112: 250 | O112: 4 | P112: СРВ | Q112: Коренева губка, КВШ | R112: 10 | S112: відсутні
A113: Костопільське | B113: 87 | C113: 10 | D113: 1.9 | F113: 1 | H113: 8Сз1Яле1Бп | I113: 70 | J113: 0.85 | K113: 1 | L113: 24 | M113: 28 | N113: 430 | O113: 4 | P113: СРВ | Q113: Пониження РГВ, КВШ | R113: 15 | S113: відсутні
B114: Разом (СРВ): | F114: =SUM(F44:F113) -> 111.9
A115: Костопільське | B115: 11 | C115: 17 | D115: 1.9 | E115: 1 | F115: 0.8 | G115: 0.8 | H115: 8Сз2Гз+Бп+Дз | I115: 80 | J115: 0.7 | K115: 1А | L115: 28 | M115: 32 | N115: 300 | O115: 4 | P115: СРС | Q115: Пониження РГВ, КВШ | R115: 300 | S115: відсутні
A116: Костопільське | B116: 11 | C116: 18 | D116: 1.7 | E116: 1 | F116: 0.2 | G116: 0.2 | H116: 5Сз2Дз2Бп1Гз+Влч | I116: 72 | J116: 0.7 | K116: 1А | L116: 27 | M116: 32 | N116: 280 | O116: 4 | P116: СРС | Q116: Пониження РГВ, КВШ | R116: 280 | S116: відсутні
A117: Костопільське | B117: 11 | C117: 19 | D117: 1.7 | E117: 1 | F117: 0.2 | G117: 0.2 | H117: 9Сз1Гз+Дз | I117: 80 | J117: 0.7 | K117: 1 | L117: 27 | M117: 32 | N117: 300 | O117: 4 | P117: СРС | Q117: Пониження РГВ, КВШ | R117: 300 | S117: відсутні
A118: Костопільське | B118: 17 | C118: 1 | D118: 1 | E118: 1 | F118: 0.2 | H118: 9Сз1Бп | I118: 58 | J118: 0.85 | K118: 1А | L118: 24 | M118: 28 | N118: 400 | O118: 2 | P118: СРС | Q118: Пониження РГВ, КВШ | R118: 400 | S118: відсутні
A119: Костопільське | B119: 17 | C119: 8 | D119: 3 | E119: 1 | F119: 0.7 | G119: 0.7 | H119: 10Сз+Бп | I119: 80 | J119: 0.8 | K119: 1Б | L119: 31 | M119: 36 | N119: 570 | O119: 2 | P119: СРС | Q119: Пониження РГВ, КВШ | R119: 570 | S119: відсутні
A120: Костопільське | B120: 22 | C120: 12 | D120: 9 | E120: 1 | F120: 0.1 | H120: 10Сз+Бп | I120: 58 | J120: 0.75 | K120: 1А | L120: 24 | M120: 28 | N120: 380 | O120: 2 | P120: СРС | Q120: Пониження РГВ, КВШ | R120: 380 | S120: відсутні
A121: Костопільське | B121: 26 | C121: 40 | D121: 2.9 | E121: 1 | F121: 0.2 | G121: 0.2 | H121: 10Сз+Дз | I121: 80 | J121: 0.8 | K121: 1А | L121: 30 | M121: 36 | N121: 570 | O121: 2 | P121: СРС | Q121: Пониження РГВ, КВШ | R121: 570 | S121: відсутні
A122: Костопільське | B122: 26 | C122: 41 | D122: 1.5 | E122: 1 | F122: 0.2 | G122: 0.2 | H122: 10Сз+Дз+Гз | I122: 75 | J122: 0.7 | K122: 1А | L122: 29 | M122: 32 | N122: 460 | O122: 2 | P122: СРС | Q122: Пониження РГВ, КВШ | R122: 460 | S122: відсутні
A123: Костопільське | B123: 37 | C123: 19 | D123: 1.5 | E123: 1 | F123: 0.3 | H123: 10Сз+Бп | I123: 65 | J123: 0.85 | K123: 1А | L123: 26 | M123: 30 | N123: 460 | O123: 2 | P123: СРС | Q123: Пониження РГВ, КВШ | R123: 460 | S123: відсутні
A124: Костопільське | B124: 37 | C124: 20 | D124: 1.4 | E124: 1 | F124: 0.3 | H124: 10Сз+Бп | I124: 65 | J124: 0.8 | K124: 1А | L124: 26 | M124: 30 | N124: 460 | O124: 2 | P124: СРС | Q124: Пониження РГВ, КВШ | R124: 460 | S124: відсутні
A125: Костопільське | B125: 37 | C125: 21 | D125: 1.5 | E125: 1 | F125: 0.3 | H125: 10Сз | I125: 46 | J125: 0.8 | K125: 1А | L125: 21 | M125: 26 | N125: 340 | O125: 2 | P125: СРС | Q125: Пониження РГВ, КВШ | R125: 340 | S125: відсутні
A126: Костопільське | B126: 37 | C126: 22 | D126: 0.6 | E126: 1 | F126: 0.3 | H126: 10Сз | I126: 46 | J126: 0.7 | K126: 1А | L126: 21 | M126: 26 | N126: 300 | O126: 2 | P126: СРС | Q126: Пониження РГВ, КВШ | R126: 300 | S126: відсутні
A127: Костопільське | B127: 37 | C127: 29 | D127: 0.8 | E127: 1 | F127: 0.2 | H127: 10Сз | I127: 58 | J127: 0.75 | K127: 1А | L127: 23 | M127: 26 | N127: 360 | O127: 2 | P127: СРС | Q127: Пониження РГВ, КВШ | R127: 360 | S127: відсутні
A128: Костопільське | B128: 46 | C128: 3 | D128: 0.4 | E128: 1 | F128: 0.1 | H128: 10Сз+Бп | I128: 67 | J128: 0.8 | K128: 1 | L128: 24 | M128: 28 | N128: 400 | O128: 2 | P128: СРС | Q128: Пониження РГВ, КВШ | R128: 400 | S128: відсутні
A129: Костопільське | B129: 50 | C129: 8 | D129: 0.7 | E129: 1 | F129: 0.7 | H129: 10Сз | I129: 60 | J129: 0.8 | K129: 1А | L129: 23 | M129: 28 | N129: 390 | O129: 2 | P129: СРС | Q129: Пониження РГВ, КВШ | R129: 390 | S129: відсутні
A130: Костопільське | B130: 54 | C130: 5 | D130: 3 | E130: 1 | F130: 0.4 | H130: 9Сз1Бп+Гз | I130: 56 | J130: 0.8 | K130: 1А | L130: 24 | M130: 30 | N130: 380 | O130: 2 | P130: СРС | Q130: Пониження РГВ, КВШ | R130: 380 | S130: відсутні
A131: Костопільське | B131: 54 | C131: 5 | D131: 3 | E131: 2 | F131: 0.2 | H131: 9Сз1Бп+Гз | I131: 56 | J131: 0.8 | K131: 1А | L131: 24 | M131: 30 | N131: 380 | O131: 2 | P131: СРС | Q131: Пониження РГВ, КВШ | R131: 380 | S131: відсутні
A132: Костопільське | B132: 55 | C132: 1 | D132: 1.6 | E132: 1 | F132: 0.2 | H132: 9Сз1Бп | I132: 59 | J132: 0.8 | K132: 1А | L132: 24 | M132: 32 | N132: 380 | O132: 2 | P132: СРС | Q132: Пониження РГВ, КВШ | R132: 380 | S132: відсутні
A133: Костопільське | B133: 57 | C133: 3 | D133: 11 | E133: 1 | F133: 2 | H133: 9Сз1Бп | I133: 58 | J133: 0.75 | K133: 1 | L133: 22 | M133: 26 | N133: 330 | O133: 2 | P133: СРС | Q133: Пониження РГВ, КВШ | R133: 330 | S133: відсутні
A134: Костопільське | B134: 57 | C134: 3 | D134: 11 | E134: 2 | F134: 0.5 | H134: 9Сз1Бп | I134: 58 | J134: 0.75 | K134: 1 | L134: 22 | M134: 26 | N134: 330 | O134: 2 | P134: СРС | Q134: Пониження РГВ, КВШ | R134: 330 | S134: відсутні
A135: Костопільське | B135: 57 | C135: 8 | D135: 7.4 | E135: 1 | F135: 0.1 | H135: 10Сз+Дз+Бп | I135: 56 | J135: 0.75 | K135: 1А | L135: 24 | M135: 28 | N135: 380 | O135: 2 | P135: СРС | Q135: Пониження РГВ, КВШ | R135: 380 | S135: відсутні
A136: Костопільське | B136: 57 | C136: 8 | D136: 7.4 | E136: 2 | F136: 0.8 | H136: 10Сз+Дз+Бп | I136: 56 | J136: 0.75 | K136: 1А | L136: 24 | M136: 28 | N136: 380 | O136: 2 | P136: СРС | Q136: Пониження РГВ, КВШ | R136: 380 | S136: відсутні
A137: Костопільське | B137: 58 | C137: 1 | D137: 8.5 | E137: 1 | F137: 0.7 | H137: 10Сз+Бп | I137: 60 | J137: 0.75 | K137: 1А | L137: 26 | M137: 28 | N137: 430 | O137: 2 | P137: СРС | Q137: Пониження РГВ, КВШ | R137: 430 | S137: відсутні
A138: Костопільське | B138: 59 | C138: 14 | D138: 8.1 | E138: 1 | F138: 1.2 | H138: 9Сз1Бп | I138: 51 | J138: 0.8 | K138: 1А | L138: 22 | M138: 26 | N138: 350 | O138: 2 | P138: СРС | Q138: Пониження РГВ, КВШ | R138: 350 | S138: відсутні
A139: Костопільське | B139: 65 | C139: 3 | D139: 2.8 | E139: 1 | F139: 0.2 | G139: 0.2 | H139: 10Сз | I139: 58 | J139: 0.65 | K139: 2 | L139: 18 | M139: 22 | N139: 220 | O139: 4 | P139: СРС | Q139: Пониження РГВ, КВШ | R139: 220 | S139: відсутні
A140: Костопільське | B140: 65 | C140: 13 | D140: 0.8 | E140: 1 | F140: 0.2 | H140: 10Сз | I140: 49 | J140: 0.85 | K140: 1А | L140: 21 | M140: 24 | N140: 360 | O140: 4 | P140: СРС | Q140: Пониження РГВ, КВШ | R140: 360 | S140: відсутні
A141: Костопільське | B141: 88 | C141: 18 | D141: 1.1 | E141: 1 | F141: 0.5 | H141: 8Сз2Бп | I141: 51 | J141: 0.8 | K141: 1А | L141: 21 | M141: 26 | N141: 310 | O141: 4 | P141: СРС | Q141: Пониження РГВ, КВШ | R141: 310 | S141: відсутні
A142: Костопільське | B142: 90 | C142: 9 | D142: 2.6 | E142: 1 | F142: 0.3 | H142: 8Сз2Бп+Лпд+Дчр+Гз | I142: 40 | J142: 0.75 | K142: 1А | L142: 18 | M142: 22 | N142: 220 | O142: 4 | P142: СРС | Q142: Пониження РГВ, КВШ | R142: 220 | S142: відсутні
A143: Костопільське | B143: 92 | C143: 18 | D143: 2.7 | E143: 1 | F143: 1 | G143: 1 | H143: 8Сз1Ялє1Дз | I143: 70 | J143: 0.75 | K143: 1А | L143: 27 | M143: 32 | N143: 440 | O143: 4 | P143: СРС | Q143: Пониження РГВ, КВШ | R143: 440 | S143: відсутні
A144: Костопільське | B144: 95 | C144: 6 | D144: 2.7 | E144: 1 | F144: 0.5 | H144: 10Сз | I144: 45 | J144: 0.8 | K144: 1А | L144: 21 | M144: 22 | N144: 340 | O144: 4 | P144: СРС | Q144: Пониження РГВ, КВШ | R144: 340 | S144: відсутні
A145: Костопільське | B145: 95 | C145: 6 | D145: 2.7 | E145: 2 | F145: 0.3 | H145: 10Сз | I145: 45 | J145: 0.8 | K145: 1А | L145: 21 | M145: 22 | N145: 340 | O145: 4 | P145: СРС | Q145: Пониження РГВ, КВШ | R145: 340 | S145: відсутні
A146: Костопільське | B146: 95 | C146: 18 | D146: 12.2 | E146: 1 | F146: 0.1 | H146: 10Сз | I146: 46 | J146: 0.65 | K146: 1 | L146: 18 | M146: 18 | N146: 250 | O146: 4 | P146: СРС | Q146: Коренева губка, КВШ | R146: 250 | S146: відсутні
A147: Костопільське | B147: 95 | C147: 18 | D147: 12.2 | E147: 2 | F147: 0.2 | H147: 10Сз | I147: 46 | J147: 0.65 | K147: 1 | L147: 18 | M147: 18 | N147: 250 | O147: 4 | P147: СРС | Q147: Коренева губка, КВШ | R147: 250 | S147: відсутні
A148: Костопільське | B148: 45 | C148: 30 | D148: 4.8 | E148: 1 | F148: 0.3 | H148: 10Сз+Бп | I148: 52 | J148: 0.75 | K148: 1А | L148: 23 | M148: 28 | N148: 370 | O148: 2 | P148: СРС | Q148: Пониження РГВ, КВШ | R148: 370 | S148: відсутні
A149: Костопільське | B149: 46 | C149: 8 | D149: 1 | E149: 2 | F149: 0.2 | H149: 10Сз+Бп | I149: 65 | J149: 0.75 | K149: 1А | L149: 25 | M149: 26 | N149: 420 | O149: 2 | P149: СРС | Q149: Пониження РГВ, КВШ | R149: 420 | S149: відсутні
A150: Костопільське | B150: 52 | C150: 9 | D150: 1 | E150: 1 | F150: 0.3 | G150: 0.3 | H150: 10Сз+Влч+Бп | I150: 85 | J150: 0.75 | K150: 1 | L150: 28 | M150: 36 | N150: 480 | O150: 2 | P150: СРС | Q150: Пониження РГВ, КВШ | R150: 480 | S150: відсутні
A151: Костопільське | B151: 36 | C151: 2 | D151: 0.9 | E151: 1 | F151: 0.3 | H151: 10Сз+Бп | I151: 67 | J151: 0.8 | K151: 1А | L151: 27 | M151: 32 | N151: 470 | O151: 2 | P151: СРС | Q151: Пониження РГВ, КВШ | R151: 470 | S151: відсутні
A152: Костопільське | B152: 95 | C152: 26 | D152: 0.6 | E152: 2 | F152: 0.4 | H152: 10Сз | I152: 46 | J152: 0.75 | K152: 1А | L152: 19 | M152: 20 | N152: 280 | O152: 4 | P152: СРС | Q152: Пониження РГВ, КВШ | R152: 280 | S152: відсутні
B153: Разом (СРС): | F153: =SUM(F115:F152) -> 15.7 | G153: =SUM(G115:G152) -> 3.8
A154: Злазненське | B154: 22 | C154: 4 | D154: 1.7 | E154: 1 | F154: 0.5 | G154: 0.5 | H154: 9С1Б+Ос | I154: 65 | J154: 0.7 | K154: 1 | L154: 23 | M154: 26 | N154: 320 | O154: 4 | P154: СРС | Q154: Пониження РГВ, КВШ | R154: 320 | S154: відсутні
A155: Злазненське | B155: 23 | C155: 16 | D155: 0.5 | E155: 1 | F155: 0.2 | H155: 10С+Б+Д | I155: 49 | J155: 0.7 | K155: 1а | L155: 22 | M155: 24 | N155: 320 | O155: 4 | P155: СРС | Q155: Пониження РГВ, КВШ | R155: 320 | S155: відсутні
A156: Злазненське | B156: 24 | C156: 22 | D156: 2.6 | E156: 1 | F156: 0.3 | G156: 0.3 | H156: 10С | I156: 56 | J156: 0.7 | K156: 1 | L156: 21 | M156: 24 | N156: 300 | O156: 4 | P156: СРС | Q156: Пониження РГВ, КВШ | R156: 300 | S156: відсутні
A157: Злазненське | B157: 8 | C157: 11 | D157: 2.3 | E157: 2 | F157: 0.5 | G157: 0.5 | H157: 7С3Б | I157: 60 | J157: 0.7 | K157: 1 | L157: 22 | M157: 28 | N157: 250 | O157: 4 | P157: СРС | Q157: Пониження РГВ, КВШ | R157: 250 | S157: відсутні
A158: Злазненське | B158: 8 | C158: 11 | D158: 2.3 | E158: 3 | F158: 0.3 | G158: 0.3 | H158: 7С3Б | I158: 60 | J158: 0.7 | K158: 1 | L158: 22 | M158: 28 | N158: 250 | O158: 4 | P158: СРС | Q158: Пониження РГВ, КВШ | R158: 250 | S158: відсутні
A159: Злазненське | B159: 10 | C159: 15 | D159: 1.5 | E159: 1 | F159: 0.8 | G159: 0.8 | H159: 10С+Б | I159: 70 | J159: 0.8 | K159: 1 | L159: 24 | M159: 28 | N159: 400 | O159: 4 | P159: СРС | Q159: Пониження РГВ, КВШ | R159: 400 | S159: відсутні
A160: Злазненське | B160: 12 | C160: 8 | D160: 4 | E160: 1 | F160: 0.2 | G160: 0.2 | H160: 5С3Б2Ос | I160: 60 | J160: 0.6 | K160: 1 | L160: 22 | M160: 26 | N160: 200 | O160: 4 | P160: СРС | Q160: Пониження РГВ, КВШ | R160: 200 | S160: відсутні
B161: Разом (СРС): | F161: =SUM(F154:F160) -> 2.8 | G161: =SUM(G154:G160) -> 2.6
A162: Злазненське | B162: 2 | C162: 7 | D162: 2.6 | F162: =D162 -> 2.6 | H162: 10Сз+Бп | I162: 56 | J162: 0.8 | K162: 1 | L162: 21 | M162: 24 | N162: 340 | O162: 4 | P162: СРВ | Q162: Пониження РГВ, КВШ | R162: 12 | S162: відсутні
A163: Злазненське | B163: 2 | C163: 18 | D163: 1.1 | F163: 1.1 | H163: 10Сз | I163: 57 | J163: 0.7 | K163: 1а | L163: 22 | M163: 24 | N163: 320 | O163: 4 | P163: СРВ | Q163: Пониження РГВ, КВШ | R163: 10 | S163: відсутні
A164: Злазненське | B164: 3 | C164: 19 | D164: 5.4 | F164: 5.2 | H164: 10Сз+Бп+Ос | I164: 70 | J164: 0.6 | K164: 1 | L164: 24 | M164: 32 | N164: 310 | O164: 4 | P164: СРВ | Q164: Пониження РГВ, КВШ | R164: 10 | S164: відсутні
A165: Злазненське | B165: 3 | C165: 25 | D165: 3.6 | F165: 3.6 | H165: 10Сз+Бп | I165: 56 | J165: 0.8 | K165: 1 | L165: 19 | M165: 18 | N165: 300 | O165: 4 | P165: СРВ | Q165: Пониження РГВ, КВШ | R165: 12 | S165: відсутні
A166: Злазненське | B166: 3 | C166: 35 | D166: 2.5 | F166: 1.8 | H166: 10Сз+Бп | I166: 60 | J166: 0.7 | K166: 1 | L166: 22 | M166: 24 | N166: 320 | O166: 4 | P166: СРВ | Q166: Пониження РГВ, КВШ | R166: 18 | S166: відсутні
A167: Злазненське | B167: 5 | C167: 9 | D167: 2.5 | F167: 2.5 | H167: 10Сз | I167: 45 | J167: 0.8 | K167: 1 | L167: 14 | M167: 16 | N167: 200 | O167: 4 | P167: СРВ | Q167: Пониження РГВ, КВШ | R167: 15 | S167: відсутні
A168: Злазненське | B168: 7 | C168: 37 | D168: 2 | F168: 2 | H168: 10Сз+Бп | I168: 65 | J168: 0.8 | K168: 2 | L168: 20 | M168: 22 | N168: 320 | O168: 4 | P168: СРВ | Q168: Пониження РГВ, КВШ | R168: 15 | S168: відсутні
A169: Злазненське | B169: 7 | C169: 22 | D169: 1.3 | F169: 1.3 | H169: 10Сз | I169: 65 | J169: 0.7 | K169: 1а | L169: 23 | M169: 28 | N169: 340 | O169: 4 | P169: СРВ | Q169: Пониження РГВ, КВШ | R169: 20 | S169: відсутні
A170: Злазненське | B170: 8 | C170: 11 | D170: 2.3 | F170: 1.5 | H170: 7Сз3Бп | I170: 60 | J170: 0.7 | K170: 1 | L170: 22 | M170: 28 | N170: 250 | O170: 4 | P170: СРВ | Q170: Пониження РГВ, КВШ | R170: 20 | S170: відсутні
A171: Злазненське | B171: 9 | C171: 19 | D171: 8.5 | F171: 8.5 | H171: 10Сз+Бп+Ос | I171: 55 | J171: 0.7 | K171: 1 | L171: 21 | M171: 26 | N171: 300 | O171: 4 | P171: СРВ | Q171: Пониження РГВ, КВШ | R171: 15 | S171: відсутні
A172: Злазненське | B172: 10 | C172: 15 | D172: 1.5 | F172: 0.7 | H172: 10Сз+Бп | I172: 70 | J172: 0.8 | K172: 1 | L172: 24 | M172: 28 | N172: 400 | O172: 4 | P172: СРВ | Q172: Пониження РГВ, КВШ | R172: 25 | S172: відсутні
A173: Злазненське | B173: 12 | C173: 8 | D173: 4 | F173: 3.8 | H173: 5Сз3Бп2Ос | I173: 60 | J173: 0.6 | K173: 1 | L173: 22 | M173: 26 | N173: 200 | O173: 4 | P173: СРВ | Q173: Пониження РГВ, КВШ | R173: 15 | S173: відсутні
A174: Злазненське | B174: 15 | C174: 14 | D174: 2.9 | F174: 2.9 | H174: 10Сз | I174: 85 | J174: 0.5 | K174: 2 | L174: 23 | M174: 32 | N174: 240 | O174: 4 | P174: СРВ | Q174: Пониження РГВ, КВШ | R174: 20 | S174: відсутні
A175: Злазненське | B175: 17 | C175: 21 | D175: 8.5 | F175: 7.9 | H175: 10Сз | I175: 75 | J175: 0.6 | K175: 1 | L175: 25 | M175: 32 | N175: 320 | O175: 4 | P175: СРВ | Q175: Пониження РГВ, КВШ | R175: 25 | S175: відсутні
A176: Злазненське | B176: 19 | C176: 20 | D176: 2.6 | F176: 2.5 | H176: 10Сз | I176: 70 | J176: 0.7 | K176: 1 | L176: 23 | M176: 28 | N176: 340 | O176: 4 | P176: СРВ | Q176: Пониження РГВ, КВШ | R176: 20 | S176: відсутні
A177: Злазненське | B177: 19 | C177: 25 | D177: 0.6 | F177: 0.6 | H177: 9Сз1Бп+Дз | I177: 40 | J177: 0.8 | K177: 1 | L177: 16 | M177: 18 | N177: 220 | O177: 4 | P177: СРВ | Q177: Пониження РГВ, КВШ | R177: 15 | S177: відсутні
A178: Злазненське | B178: 19 | C178: 37 | D178: 0.7 | F178: 0.7 | H178: 10Сз+Вч | I178: 46 | J178: 0.7 | K178: 1а | L178: 20 | M178: 22 | N178: 280 | O178: 4 | P178: СРВ | Q178: Пониження РГВ, КВШ | R178: 12 | S178: відсутні
A179: Злазненське | B179: 23 | C179: 2 | D179: 4.4 | F179: 4.2 | H179: 10Сз+Бп+Ос | I179: 53 | J179: 0.7 | K179: 1 | L179: 19 | M179: 20 | N179: 260 | O179: 4 | P179: СРВ | Q179: Пониження РГВ, КВШ | R179: 10 | S179: відсутні
A180: Злазненське | B180: 24 | C180: 14 | D180: 6.7 | F180: 6.7 | H180: 10Сз | I180: 75 | J180: 0.7 | K180: 2 | L180: 22 | M180: 26 | N180: 340 | O180: 4 | P180: СРВ | Q180: Пониження РГВ, КВШ | R180: 15 | S180: відсутні
A181: Злазненське | B181: 26 | C181: 18 | D181: 4.1 | F181: 4.1 | H181: 10Сз+Бп | I181: 50 | J181: 0.7 | K181: 1 | L181: 19 | M181: 22 | N181: 260 | O181: 4 | P181: СРВ | Q181: Пониження РГВ, КВШ | R181: 10 | S181: відсутні
A182: Злазненське | B182: 31 | C182: 16 | D182: 17.7 | F182: 17.7 | H182: 10Сз+Бп | I182: 50 | J182: 0.7 | K182: 1 | L182: 19 | M182: 22 | N182: 260 | O182: 4 | P182: СРВ | Q182: Пониження РГВ, КВШ | R182: 12 | S182: відсутні
A183: Злазненське | B183: 34 | C183: 24 | D183: 1.4 | F183: 1.4 | H183: 10Сз | I183: 59 | J183: 0.7 | K183: 1 | L183: 20 | M183: 24 | N183: 280 | O183: 4 | P183: СРВ | Q183: Пониження РГВ, КВШ | R183: 20 | S183: відсутні
A184: Злазненське | B184: 35 | C184: 15 | D184: 11.7 | F184: 10.4 | H184: 10Сз | I184: 52 | J184: 0.7 | K184: 1а | L184: 21 | M184: 24 | N184: 300 | O184: 4 | P184: СРВ | Q184: Коренева губка, КВШ | R184: 25 | S184: відсутні
A185: Злазненське | B185: 36 | C185: 16 | D185: 5.6 | F185: 5.6 | H185: 10Сз | I185: 46 | J185: 0.7 | K185: 1 | L185: 18 | M185: 22 | N185: 240 | O185: 4 | P185: СРВ | Q185: Пониження РГВ, КВШ | R185: 10 | S185: відсутні
A186: Злазненське | B186: 36 | C186: 10 | D186: 10 | F186: 10 | H186: 10Сз | I186: 44 | J186: 0.7 | K186: 1 | L186: 18 | M186: 22 | N186: 240 | O186: 4 | P186: СРВ | Q186: Пониження РГВ, КВШ | R186: 12 | S186: відсутні
A187: Злазненське | B187: 38 | C187: 6 | D187: 2 | F187: 2 | H187: 9Сз1Бп+Вч | I187: 55 | J187: 0.7 | K187: 1 | L187: 20 | M187: 24 | N187: 260 | O187: 4 | P187: СРВ | Q187: Пониження РГВ, КВШ | R187: 20 | S187: відсутні
A188: Злазненське | B188: 38 | C188: 13 | D188: 2.2 | F188: 2.2 | H188: 9Сз1Яле | I188: 43 | J188: 0.7 | K188: 1 | L188: 17 | M188: 24 | N188: 220 | O188: 4 | P188: СРВ | Q188: Пониження РГВ, КВШ | R188: 25 | S188: відсутні
A189: Злазненське | B189: 41 | C189: 9 | D189: 10.8 | F189: 7 | H189: 10Сзк+Бп | I189: 41 | J189: 0.8 | K189: 1 | L189: 17 | M189: 18 | N189: 260 | O189: 4 | P189: СРВ | Q189: Коренева губка, КВШ | R189: 15 | S189: відсутні
A190: Злазненське | B190: 42 | C190: 11 | D190: 3 | F190: 1.9 | H190: 10Сзк+Бп | I190: 41 | J190: 0.7 | K190: 1 | L190: 17 | M190: 20 | N190: 220 | O190: 4 | P190: СРВ | Q190: Коренева губка, КВШ | R190: 12 | S190: відсутні
B191: Разом (СРВ): | F191: =SUM(F162:F190) -> 122.4
A192: Моквинське | B192: 5 | C192: 22 | D192: 4.9 | F192: 4.9 | H192: 10Сз+Бп | I192: 60 | J192: 0.8 | K192: 2 | L192: 17 | M192: 18 | N192: 250 | O192: 4 | P192: СРВ | Q192: Пониження РГВ, КВШ | R192: 15 | S192: відсутні
A193: Моквинське | B193: 5 | C193: 24 | D193: 8.4 | F193: 8.4 | H193: 10Сз+Бп | I193: 57 | J193: 0.8 | K193: 2 | L193: 18 | M193: 20 | N193: 250 | O193: 4 | P193: СРВ | Q193: Пониження РГВ, КВШ | R193: 12 | S193: відсутні
A194: Моквинське | B194: 7 | C194: 8 | D194: 2 | F194: 2 | H194: 10Сз | I194: 85 | J194: 0.65 | K194: 1 | L194: 25 | M194: 30 | N194: 350 | O194: 4 | P194: СРВ | Q194: Пониження РГВ, КВШ | R194: 15 | S194: відсутні
A195: Моквинське | B195: 7 | C195: 19 | D195: 8.8 | F195: 6.2 | H195: 10Сз | I195: 80 | J195: 0.7 | K195: 1 | L195: 24 | M195: 28 | N195: 340 | O195: 4 | P195: СРВ | Q195: Пониження РГВ, КВШ | R195: 14 | S195: відсутні
A196: Моквинське | B196: 8 | C196: 6 | D196: 2.2 | F196: 2.2 | H196: 10Сз+Бп | I196: 80 | J196: 0.65 | K196: 2 | L196: 23 | M196: 28 | N196: 300 | O196: 4 | P196: СРВ | Q196: Пониження РГВ, КВШ | R196: 19 | S196: відсутні
A197: Моквинське | B197: 12 | C197: 3 | D197: 2.7 | F197: 2.7 | H197: 10Сз+Бп | I197: 80 | J197: 0.65 | K197: 1 | L197: 24 | M197: 32 | N197: 330 | O197: 4 | P197: СРВ | Q197: Пониження РГВ, КВШ | R197: 18 | S197: відсутні
A198: Моквинське | B198: 12 | C198: 8 | D198: 4.3 | F198: 3.6 | H198: 10Сз | I198: 57 | J198: 0.8 | K198: 1 | L198: 19 | M198: 20 | N198: 300 | O198: 4 | P198: СРВ | Q198: Пониження РГВ, КВШ | R198: 11 | S198: відсутні
A199: Моквинське | B199: 15 | C199: 37 | D199: 3.6 | F199: 3.1 | H199: 10Сз | I199: 57 | J199: 0.75 | K199: 1 | L199: 21 | M199: 20 | N199: 320 | O199: 4 | P199: СРВ | Q199: Пониження РГВ, КВШ | R199: 16 | S199: відсутні
A200: Моквинське | B200: 17 | C200: 8 | D200: 0.7 | F200: 0.7 | H200: 10Сз+Бп | I200: 40 | J200: 0.7 | K200: 1 | L200: 17 | M200: 16 | N200: 220 | O200: 4 | P200: СРВ | Q200: Пониження РГВ, КВШ | R200: 10 | S200: відсутні
A201: Моквинське | B201: 18 | C201: 12 | D201: 0.9 | F201: 0.9 | H201: 10Сз | I201: 56 | J201: 0.8 | K201: 1 | L201: 20 | M201: 20 | N201: 320 | O201: 4 | P201: СРВ | Q201: Пониження РГВ, КВШ | R201: 12 | S201: відсутні
A202: Моквинське | B202: 19 | C202: 32 | D202: 4.7 | F202: 4 | H202: 10Сз | I202: 60 | J202: 0.75 | K202: 2 | L202: 19 | M202: 20 | N202: 280 | O202: 4 | P202: СРВ | Q202: Пониження РГВ, КВШ | R202: 11 | S202: відсутні
A203: Моквинське | B203: 19 | C203: 4 | D203: 4.4 | F203: 4.4 | H203: 10Сз | I203: 85 | J203: 0.6 | K203: 3 | L203: 20 | M203: 28 | N203: 210 | O203: 4 | P203: СРВ | Q203: Пониження РГВ, КВШ | R203: 15 | S203: відсутні
... 186 more rows
